bitfinex/quotes_SOLUSD_20250811
["timestamp","ask_amount","ask_price","bid_price","bid_amount"]
[1754949084585,0.03,174.3,174.27,48.01822087]
[1754949084787,0.03,174.3,174.28,0.7]
[1754949084991,0.03,174.3,174.29,42.28]
[1754949085196,0.03,174.3,174.29,52.21139252]
[1754949085676,0.03,174.3,174.29,42.96]
[1754949086008,0.03,174.3,174.29,52.19139252]
[1754949086502,0.03,174.3,174.29,57.92895635]
[1754949086671,0.03,174.3,174.29,48.69756383]
[1754949087074,0.03,174.3,174.29,47.99756383]
[1754949087281,0.03,174.3,174.29,42.26]
[1754949087496,0.03,174.3,174.29,47.99756383]
[1754949087701,0.03,174.3,174.29,48.69756383]
[1754949087884,0.03,174.3,174.29,73.03517192]
[1754949090795,0.03,174.34,174.33,41.10621557]
[1754949090995,9.91139252,174.41,174.34,15.10621557]
[1754949091326,9.23139252,174.42,174.36,9.23139252]
[1754949091512,9.23139252,174.41,174.37,42.24]
[1754949091824,9.91139252,174.41,174.37,42.24]
[1754949092311,0.68,174.41,174.37,42.24]
[1754949092700,0.68,174.41,174.38,5.73460259]
[1754949092895,9.23139252,174.41,174.39,42.24]
[1754949093391,9.91139252,174.41,174.39,42.24]
[1754949094008,0.68,174.41,174.39,42.24]
[1754949094414,9.23139252,174.42,174.39,42.24]
[1754949094596,0.68,174.43,174.39,42.24]
[1754949094801,9.23139252,174.42,174.39,42.24]
[1754949095008,0.68,174.42,174.39,47.97423789]
[1754949095203,9.91139252,174.42,174.39,47.97423789]
[1754949095413,0.68,174.42,174.39,47.97423789]
[1754949095607,0.68,174.44,174.39,47.97423789]
[1754949095808,0.71,174.46,174.4,0.7]
[1754949096119,9.23139252,174.44,174.41,42.2]
[1754949096600,9.91139252,174.44,174.41,42.2]
[1754949096999,0.68,174.44,174.41,47.93361265]
[1754949097422,9.91139252,174.44,174.41,47.93361265]
[1754949097617,0.68,174.44,174.41,47.93361265]
[1754949097793,9.91139252,174.44,174.41,47.93361265]
[1754949098116,9.23139252,174.44,174.41,47.93361265]
[1754949098415,0.71,174.46,174.41,47.93361265]
[1754949098616,9.23139252,174.44,174.41,47.93361265]
[1754949098824,0.68,174.45,174.41,47.93361265]
[1754949099224,9.23139252,174.45,174.41,48.63361265]
[1754949099602,0.03,174.46,174.41,48.63361265]
[1754949099901,9.23139252,174.45,174.41,48.63361265]
[1754949100102,0.71,174.46,174.41,48.63361265]
[1754949100301,9.23139252,174.45,174.41,48.63361265]
[1754949100496,0.71,174.46,174.41,48.63361265]
[1754949100712,0.71,174.46,174.42,6.43313205]
[1754949100934,9.23139252,174.45,174.43,42.1]
[1754949102421,9.26139252,174.46,174.43,42.8]
[1754949102799,9.23139252,174.45,174.43,42.8]
[1754949103348,0.03,174.46,174.43,48.5328338]
[1754949103500,9.26139252,174.46,174.43,47.8328338]
[1754949104122,0.03,174.46,174.43,48.5328338]
[1754949104320,9.26139252,174.46,174.44,0.7]
[1754949104522,0.03,174.46,174.45,0.7]
[1754949104729,0.03,174.46,174.45,42.76]
[1754949104927,0.03,174.46,174.45,48.49230151]
[1754949105422,0.03,174.46,174.45,63.59851708]
[1754949105626,0.03,174.46,174.45,72.8299096]
[1754949106126,0.03,174.46,174.45,63.59851708]
[1754949106304,0.03,174.46,174.45,72.8299096]
[1754949108023,0.03,174.46,174.45,42.06]
[1754949110228,9.92139252,174.46,174.4,6.42394495]
[1754949110415,9.23139252,174.43,174.41,42.0]
[1754949111218,9.89139252,174.42,174.41,42.0]
[1754949112003,9.23139252,174.42,174.41,42.0]
[1754949112214,0.66,174.44,174.41,42.0]
[1754949112418,9.23139252,174.42,174.41,42.0]
[1754949112617,9.23139252,174.43,174.41,42.0]
[1754949113215,0.66,174.44,174.39,5.73420968]
[1754949113516,5.73240892,174.45,174.39,5.73420968]
[1754949113517,9.23139252,174.43,174.4,42.02]
[1754949113721,9.23139252,174.43,174.4,42.71]
[1754949114414,9.23139252,174.43,174.41,0.69]
[1754949114617,9.23139252,174.43,174.42,42.0]
[1754949116000,9.23139252,174.44,174.42,42.0]
[1754949116722,6.28079988,174.44,174.42,42.0]
[1754949117129,0.69,174.46,174.36,41.10621557]
[1754949117130,12.6739254,174.43,174.36,31.73518119]
[1754949117427,6.28079988,174.37,174.3,0.69]
[1754949117599,6.28079988,174.32,174.3,6.42723465]
[1754949117801,0.66,174.34,174.29,0.06]
[1754949118008,0.66,174.33,174.31,42.2]
[1754949118403,4.56386174,174.36,174.29,0.06]
[1754949118624,0.66,174.32,174.29,0.06]
[1754949119126,9.23080528,174.3,174.29,0.06]
[1754949119423,9.89080528,174.3,174.29,0.06]
[1754949120523,15.62803993,174.3,174.29,0.06]
[1754949120704,9.23080528,174.3,174.29,0.06]
[1754949121320,15.62803993,174.3,174.29,0.06]
[1754949121513,19.36595345,174.3,174.29,0.06]
[1754949123316,5.73695679,174.31,174.29,0.06]
[1754949123516,9.23080528,174.3,174.29,0.06]
[1754949126101,5.73635451,174.33,174.29,0.06]
[1754949126331,5.73635451,174.33,174.3,42.42]
[1754949126530,5.73635451,174.33,174.29,0.06]
[1754949126828,0.66,174.33,174.3,42.42]
[1754949127416,9.23080528,174.31,174.3,42.42]
[1754949128228,9.23080528,174.31,174.3,42.44]
[1754949130626,0.66,174.33,174.3,42.44]
[1754949130819,9.23080528,174.31,174.3,42.44]
[1754949131923,15.62779729,174.31,174.29,0.06]
[1754949132238,9.89080528,174.3,174.29,0.06]
[1754949133023,39.89080528,174.3,174.29,0.06]
[1754949133927,45.62803993,174.3,174.29,0.06]
[1754949136119,41.10621557,174.29,174.25,0.06]
[1754949136441,74.46161056,174.26,174.25,0.06]
[1754949136744,26.0,174.24,174.23,0.06]
[1754949136944,44.46161056,174.24,174.23,0.06]
[1754949137247,56.66,174.24,174.23,0.06]
[1754949137416,39.23080528,174.24,174.23,0.06]
[1754949137853,49.12161056,174.24,174.23,0.06]
[1754949138027,49.12161056,174.24,174.18,42.56]
[1754949138232,9.23080528,174.19,174.17,0.69]
[1754949138436,9.23080528,174.18,174.17,43.25]
[1754949138634,9.23080528,174.18,174.17,42.56]
[1754949139233,39.23080528,174.18,174.17,42.56]
[1754949139924,39.23080528,174.18,174.17,42.62]
[1754949140647,44.97199255,174.18,174.17,0.06]
[1754949143251,45.63199255,174.18,174.17,0.06]
[1754949144059,30.0,174.18,174.17,0.06]
[1754949144229,39.23080528,174.18,174.17,0.06]
[1754949147553,30.0,174.18,174.17,0.73]
[1754949148144,9.23080528,174.21,174.17,0.73]
[1754949148339,9.23080528,174.21,174.17,6.47132704]
[1754949148538,9.23080528,174.21,174.18,0.67]
[1754949148856,9.23080528,174.21,174.19,43.37]
[1754949149057,9.23080528,174.21,174.19,42.7]
[1754949149226,9.23080528,174.21,174.2,0.67]
[1754949150041,0.66,174.27,174.2,6.41050869]
[1754949150355,2.82389952,174.28,174.21,25.00702085]
[1754949150546,9.23080528,174.27,174.22,0.67]
[1754949150747,0.03,174.3,174.23,42.7]
[1754949151049,9.23080528,174.28,174.24,0.67]
[1754949151237,9.23080528,174.29,174.24,0.67]
[1754949151633,9.23080528,174.29,174.25,5.73888091]
[1754949151958,9.23080528,174.29,174.26,0.67]
[1754949152163,9.23080528,174.29,174.27,42.72]
[1754949152450,0.03,174.3,174.27,42.72]
[1754949152652,0.03,174.3,174.28,0.67]
[1754949153447,0.03,174.3,174.29,15.10621557]
[1754949153763,0.03,174.3,174.29,30.07458468]
[1754949153934,0.03,174.3,174.29,21.5137794]
[1754949154345,0.03,174.3,174.29,30.74458468]
[1754949155240,0.03,174.3,174.29,21.5137794]
[1754949155745,0.03,174.3,174.29,30.74458468]
[1754949155951,0.03,174.3,174.29,21.5137794]
[1754949156144,0.03,174.34,174.33,15.10621557]
[1754949156348,0.03,174.34,174.33,67.01702085]
[1754949156548,0.03,174.34,174.33,67.68702085]
[1754949157635,0.03,174.34,174.33,64.19246291]
[1754949157837,0.03,174.34,174.33,73.42326819]
[1754949159139,0.03,174.36,174.35,41.10621557]
[1754949159564,0.03,174.36,174.35,51.00702085]
[1754949159739,0.03,174.36,174.35,56.74261018]
[1754949160072,0.03,174.4,174.39,41.10621557]
[1754949160239,0.03,174.4,174.39,92.93702085]
[1754949160439,0.03,174.4,174.39,93.60702085]
[1754949161860,0.03,174.4,174.39,99.3412946]
[1754949162539,0.03,174.4,174.39,99.91472197]
[1754949163340,0.03,174.46,174.4,15.10621557]
[1754949163540,0.03,174.46,174.42,24.33702085]
[1754949163749,0.03,174.46,174.43,42.52]
[1754949163975,0.03,174.46,174.44,5.73263013]
[1754949164170,0.03,174.46,174.45,42.52]
[1754949165858,0.03,174.46,174.45,48.25230151]
[1754949168169,0.03,174.46,174.45,48.92230151]
[1754949168366,0.03,174.46,174.45,64.02851708]
[1754949169381,0.03,174.46,174.45,64.01851708]
[1754949169565,0.03,174.46,174.45,99.82255251]
[1754949169757,0.03,174.46,174.45,73.82255251]
[1754949169980,0.03,174.48,174.47,41.10621557]
[1754949170293,0.03,174.48,174.47,93.29018529]
[1754949170478,0.03,174.48,174.47,93.95018529]
[1754949170656,0.03,174.49,174.48,15.10621557]
[1754949170861,0.03,174.49,174.48,22.03919687]
[1754949171488,0.03,174.49,174.48,27.77051278]
[1754949172782,0.03,174.49,174.48,31.53303443]
[1754949173165,1e-08,174.49,174.48,31.53303443]
[1754949174110,1e-08,174.49,174.48,48.76303443]
[1754949174796,1e-08,174.49,174.48,38.72753148]
[1754949175001,1e-08,174.49,174.48,48.76303443]
[1754949176281,1e-08,174.49,174.48,58.76303443]
[1754949176889,1e-08,174.49,174.48,48.76303443]
[1754949177101,1e-08,174.49,174.48,91.02303443]
[1754949177688,1e-08,174.49,153.5,0.03]
[1754949177689,10.71550296,174.49,174.42,0.66]
[1754949178004,10.03550295,174.47,174.43,42.36]
[1754949178204,0.68,174.46,174.44,42.36]
[1754949178762,0.68,174.46,174.44,48.09247565]
[1754949179371,0.68,174.48,174.44,48.09247565]
[1754949179700,0.68,174.47,174.44,48.09247565]
[1754949180063,10.71550296,174.49,174.44,48.09247565]
[1754949180397,10.71550295,174.48,174.44,48.09247565]
[1754949180865,0.68,174.48,174.44,48.09247565]
[1754949181070,0.68,174.48,174.45,15.10621557]
[1754949181270,1e-08,174.49,174.46,42.32]
[1754949181480,0.68000001,174.49,174.46,42.32]
[1754949181685,1e-08,174.49,174.46,53.01550295]
[1754949182080,1e-08,174.49,174.47,15.10621557]
[1754949182395,1e-08,174.49,174.48,42.3]
[1754949182689,1e-08,174.49,174.48,57.40621557]
[1754949183090,1e-08,174.49,174.48,63.13753148]
[1754949183891,1e-08,174.49,174.48,73.83303443]
[1754949184479,1e-08,174.49,174.48,63.79753148]
[1754949185070,1e-08,174.49,174.48,63.13753148]
[1754949185979,1e-08,174.49,174.48,63.79753148]
[1754949187076,1e-08,174.49,174.48,73.83303443]
[1754949187484,1e-08,174.49,174.48,63.79753148]
[1754949189168,1e-08,174.49,174.48,73.83303443]
[1754949189373,1e-08,174.49,174.48,73.69303443]
[1754949192900,1e-08,174.49,174.48,69.93043351]
[1754949194478,1e-08,174.49,174.48,95.83043351]
[1754949194716,0.68000001,174.49,174.48,15.10621557]
[1754949194900,0.68000001,174.49,174.48,57.14621557]
[1754949195078,0.68000001,174.49,174.48,62.87753148]
[1754949195278,0.68000001,174.49,174.48,57.14621557]
[1754949196297,0.68000001,174.49,174.48,15.10621557]
[1754949196488,0.68000001,174.49,174.48,62.85753148]
[1754949197996,0.68000001,174.49,174.48,57.12621557]
[1754949198814,0.68000001,174.49,174.48,15.10621557]
[1754949199111,0.68000001,174.49,174.48,57.08621557]
[1754949199410,0.68000001,174.49,174.48,57.06621557]
[1754949200089,10.68507443,174.49,174.46,15.10621557]
[1754949200286,6.27290203,174.47,174.43,15.10621557]
[1754949200492,4.40217239,174.46,174.45,15.10621557]
[1754949200688,10.67507442,174.46,174.44,41.98]
[1754949200912,16.40737593,174.45,174.44,57.08621557]
[1754949201112,15.73737593,174.45,174.44,57.08621557]
[1754949201297,16.40737593,174.45,174.44,41.98]
[1754949201801,21.01868196,174.45,174.44,41.98]
[1754949202786,21.51868196,174.45,174.44,41.98]
[1754949202984,23.19452727,174.45,174.43,41.98]
[1754949203223,10.67507442,174.44,174.42,41.98]
[1754949203426,15.36611275,174.43,174.42,41.98]
[1754949204500,16.4080332,174.43,174.42,41.98]
[1754949205222,16.4080332,174.43,174.41,41.94]
[1754949205429,10.67507442,174.42,174.41,41.94]
[1754949205723,10.67507442,174.42,174.4,42.02]
[1754949205905,10.00507442,174.41,174.4,42.02]
[1754949206100,10.67507442,174.41,174.4,42.02]
[1754949206308,16.40869061,174.41,174.4,42.02]
[1754949208817,46.40869061,174.41,174.4,42.02]
[1754949209319,42.67651822,174.41,174.4,42.02]
[1754949210598,30.0,174.41,174.4,42.02]
[1754949210806,30.0,174.41,174.4,57.82621557]
[1754949211121,30.0,174.41,174.4,63.56016052]
[1754949211328,6.27290203,174.44,174.4,63.56016052]
[1754949211504,0.67,174.48,174.41,15.80621557]
[1754949211817,6.40134471,174.48,174.43,15.10621557]
[1754949212018,30.0,174.44,174.43,15.10621557]
[1754949212245,36.27290203,174.44,174.43,57.00621557]
[1754949212519,36.27290203,174.44,174.4,0.76]
[1754949212711,30.67,174.44,174.41,57.02621557]
[1754949212912,6.27290203,174.42,174.41,41.92]
[1754949213122,6.94290203,174.42,174.41,41.92]
[1754949213422,36.94290203,174.42,174.41,41.92]
[1754949214096,37.44290203,174.42,174.41,41.92]
[1754949214517,36.77290203,174.42,174.41,41.92]
[1754949215106,36.77290203,174.42,174.41,41.94]
[1754949215299,37.44290203,174.42,174.41,41.94]
[1754949215502,43.17618949,174.42,174.41,41.94]
[1754949218307,13.17618949,174.42,174.41,41.94]
[1754949219731,12.67618949,174.42,174.41,41.94]
[1754949220030,12.00618949,174.42,174.41,41.94]
[1754949221328,42.67618949,174.42,174.41,41.94]
[1754949223816,42.00618949,174.42,174.41,41.94]
[1754949224134,42.50618949,174.42,174.41,41.94]
[1754949224435,36.77290203,174.42,174.41,41.94]
[1754949224611,42.50618949,174.42,174.41,41.94]
[1754949225012,43.17618949,174.42,174.4,0.06]
[1754949225213,36.90328746,174.42,174.41,41.86]
[1754949225409,36.90328746,174.42,174.4,0.06]
[1754949225621,36.90328746,174.42,174.41,41.86]
[1754949226426,43.17618949,174.42,174.41,41.86]
[1754949226813,42.50618949,174.42,174.41,41.86]
[1754949227531,42.00618949,174.42,174.41,41.86]
[1754949229729,42.70618949,174.42,174.4,0.06]
[1754949229937,13.24580406,174.41,174.4,0.06]
[1754949230122,43.24580406,174.41,174.4,0.06]
[1754949230511,43.24580406,174.41,174.38,0.06]
[1754949230714,26.0,174.38,174.24,17.23]
[1754949230919,6.27290203,174.3,174.22,0.1]
[1754949231127,56.0,174.29,174.22,0.1]
[1754949231425,6.27290203,174.23,174.22,0.1]
[1754949231826,6.97290203,174.23,174.22,0.1]
[1754949232211,36.97290203,174.23,174.22,0.1]
[1754949232639,36.27290203,174.23,174.22,0.1]
[1754949232820,36.97290203,174.23,174.22,0.1]
[1754949233025,36.43953968,174.23,174.22,0.1]
[1754949233342,36.97290203,174.23,174.22,0.1]
[1754949233715,36.27290203,174.23,174.22,0.1]
[1754949234151,30.0,174.23,174.22,15.88621557]
[1754949234445,6.27290203,174.26,174.23,20.84575525]
[1754949234766,9.22984365,174.26,174.24,0.68]
[1754949235245,2.298982,174.28,174.25,15.10621557]
[1754949235554,9.22984365,174.29,174.26,42.64]
[1754949235759,9.229843,174.3,174.27,15.78621557]
[1754949235912,9.229843,174.3,174.28,6.41789304]
[1754949236131,9.229843,174.3,174.29,15.10621557]
[1754949236371,7.19978477,174.33,174.29,0.68]
[1754949237359,7.19978477,174.33,174.3,15.10621557]
[1754949237560,9.229843,174.35,174.31,42.64]
[1754949237767,9.229843,174.35,174.32,15.78621557]
[1754949237932,9.229843,174.35,174.33,5.73624734]
[1754949238133,9.22984365,174.37,174.33,6.41624734]
[1754949238458,9.22984365,174.38,174.34,0.68]
[1754949238665,9.22984365,174.38,174.35,42.0]
[1754949238975,9.22984365,174.38,174.36,0.68]
[1754949239272,9.229844,174.39,174.37,0.68]
[1754949239556,9.229844,174.39,174.38,0.68]
[1754949239785,9.229844,174.39,174.38,15.78621557]
[1754949240055,9.22984365,174.42,174.39,5.73427375]
[1754949240360,9.229844,174.46,174.4,42.0]
[1754949240670,7.76285826,174.48,174.41,15.10621557]
[1754949240843,9.22984365,174.42,174.37,15.10621557]
[1754949241169,9.22984365,174.4,174.38,42.0]
[1754949241535,0.7,174.42,174.38,42.0]
[1754949241536,9.22984365,174.39,174.38,42.0]
[1754949241734,0.7,174.42,174.38,42.0]
[1754949241953,9.22984365,174.4,174.38,42.0]
[1754949242851,9.22984365,174.4,174.36,15.10621557]
[1754949243033,0.7,174.41,174.37,42.06]
[1754949243236,15.661979,174.43,174.37,42.74]
[1754949243436,9.22984365,174.41,174.37,42.74]
[1754949243648,9.22984365,174.4,174.37,42.74]
[1754949244289,9.22984365,174.39,174.37,42.06]
[1754949244654,9.92984365,174.38,174.29,6.41756383]
[1754949244984,39.22984365,174.37,174.31,9.22984365]
[1754949245190,39.22984365,174.37,174.32,58.24621557]
[1754949245350,39.22984365,174.37,174.33,0.68]
[1754949245351,30.0,174.37,174.33,0.68]
[1754949245554,39.22984365,174.37,174.34,0.68]
[1754949245781,39.22984365,174.37,174.33,15.10621557]
[1754949246081,9.22984365,174.36,174.33,15.78621557]
[1754949246255,9.22984365,174.36,174.33,21.52237864]
[1754949246455,9.22984365,174.38,174.34,0.68]
[1754949246656,4.66730478,174.43,174.37,41.10621557]
[1754949246657,9.22984365,174.41,174.37,41.10621557]
[1754949246868,9.22984365,174.41,174.38,43.12]
[1754949247855,0.7,174.43,174.38,48.85458721]
[1754949248576,9.22984365,174.42,174.38,48.85458721]
[1754949249073,13.17190759,174.47,174.38,48.85458721]
[1754949249074,9.22984365,174.45,174.4,15.10621557]
[1754949249288,9.22984365,174.45,174.41,43.1]
[1754949249656,9.22984365,174.45,174.42,0.68]
[1754949249987,0.7,174.46,174.42,0.68]
[1754949249988,9.22984365,174.44,174.42,0.68]
[1754949250350,0.7,174.46,174.42,0.68]
[1754949250554,9.25984365,174.45,174.42,0.68]
[1754949250870,0.03,174.45,174.43,0.68]
[1754949251077,9.25984365,174.45,174.44,42.38]
[1754949251878,0.03,174.45,174.44,42.38]
[1754949254079,0.03,174.45,174.44,43.06]
[1754949254671,0.03,174.45,174.44,63.8988457]
[1754949254893,0.03,174.45,174.44,73.12868935]
[1754949255578,1e-08,174.45,174.44,73.70195236]
[1754949256881,1e-08,174.49,174.48,41.10621557]
[1754949257086,1e-08,174.49,174.48,92.63605922]
[1754949257280,1e-08,174.49,174.48,93.31605922]
[1754949258082,1e-08,174.49,174.48,99.04737513]
[1754949261703,1e-08,174.49,174.48,89.81753148]
[1754949261875,1e-08,174.49,174.48,99.04737513]
[1754949262689,1e-08,174.49,174.48,30.74737513]
[1754949262888,1e-08,174.49,174.42,17.23]
[1754949262889,9.92984366,174.49,174.42,1.24332874]
[1754949263193,9.22984365,174.46,174.43,42.2]
[1754949263515,9.92984365,174.45,174.44,15.10621557]
[1754949263684,0.7,174.45,174.44,15.10621557]
[1754949264079,9.92984365,174.47,174.44,15.10621557]
[1754949264305,0.7,174.47,174.45,42.18]
[1754949264471,9.22984366,174.49,174.45,42.18]
[1754949264670,9.92984366,174.49,174.45,42.18]
[1754949264879,1e-08,174.49,174.48,15.10621557]
[1754949265094,1e-08,174.49,174.48,57.97621557]
[1754949265302,1e-08,174.49,174.48,57.30621557]
[1754949265678,1e-08,174.49,174.48,63.03753148]
[1754949266497,1e-08,174.49,174.48,72.93737513]
[1754949267704,1e-08,174.49,174.48,63.70753148]
[1754949269111,1e-08,174.49,174.48,72.93737513]
[1754949273130,0.2,174.52,174.51,41.10621557]
[1754949273302,1e-08,174.52,174.51,92.41605922]
[1754949273512,1e-08,174.52,174.51,93.08605922]
[1754949274414,1e-08,174.52,174.51,98.81638986]
[1754949275327,0.03,174.53,174.51,99.38942292]
[1754949275328,1e-08,174.53,174.51,99.38942292]
[1754949275531,1e-08,174.53,174.52,25.00605922]
[1754949276035,1e-08,174.55,174.54,24.33605922]
[1754949276220,1e-08,174.55,174.54,66.37605922]
[1754949276432,1e-08,174.55,174.54,72.77540492]
[1754949278014,1e-08,174.55,174.54,72.10540492]
[1754949278329,1e-08,174.55,174.54,72.77540492]
[1754949279104,1e-08,174.55,174.54,21.50556127]
[1754949279323,1e-08,174.55,174.54,72.73540492]
[1754949279509,1e-08,174.55,174.54,72.06540492]
[1754949279708,1e-08,174.55,174.54,72.73540492]
[1754949282220,1e-08,174.55,174.54,63.50556127]
[1754949282428,1e-08,174.55,174.54,46.83556127]
[1754949282611,9.92984366,174.55,174.54,83.02621557]
[1754949282811,0.70000001,174.55,174.54,41.96]
[1754949283014,9.92984366,174.55,174.54,41.96]
[1754949283531,15.65886113,174.55,174.54,41.96]
[1754949283721,19.39669604,174.55,174.54,41.96]
[1754949284134,0.70000001,174.55,174.54,41.96]
[1754949285337,0.70000001,174.55,174.54,57.06621557]
[1754949285338,1e-08,174.55,174.54,57.06621557]
[1754949285527,0.70000001,174.55,174.54,57.06621557]
[1754949286434,9.92984366,174.55,174.54,41.96]
[1754949286747,13.66996448,174.55,174.54,41.96]
[1754949288022,13.66996448,174.55,174.54,41.92]
[1754949289554,4.44012083,174.55,174.54,41.92]
[1754949289931,13.66996448,174.55,174.5,26.0]
[1754949290129,9.89984365,174.54,174.51,56.98621557]
[1754949290449,0.67,174.54,174.51,56.98621557]
[1754949290660,0.67,174.54,174.52,41.86]
[1754949290836,1e-08,174.55,174.53,15.10621557]
[1754949291018,1e-08,174.55,174.54,63.35556127]
[1754949291822,1e-08,174.55,174.54,57.62621557]
[1754949294159,1e-08,174.55,174.54,63.35556127]
[1754949294356,1e-08,174.55,174.54,63.41556127]
[1754949294551,1e-08,174.55,174.54,72.64540492]
[1754949296026,1e-08,174.55,174.54,57.68621557]
[1754949296456,1e-08,174.55,174.54,72.64540492]
[1754949299248,1e-08,174.55,174.54,66.25605922]
[1754949299754,1e-08,174.55,174.54,71.98540492]
[1754949300065,1e-08,174.55,174.54,63.41556127]
[1754949300433,1e-08,174.55,174.54,57.68621557]
[1754949300931,1e-08,174.55,174.54,69.68555388]
[1754949302653,1e-08,174.55,174.54,63.41556127]
[1754949302845,1e-08,174.55,174.54,69.68555388]
[1754949303854,1e-08,174.55,174.54,63.41556127]
[1754949304038,1e-08,174.55,174.54,69.68555388]
[1754949304239,1e-08,174.55,174.54,15.16621557]
[1754949304447,1e-08,174.55,174.54,57.02621557]
[1754949305150,1e-08,174.55,174.54,63.29620818]
[1754949308246,0.67000001,174.55,174.54,83.02621557]
[1754949308448,0.67000001,174.55,174.54,15.16621557]
[1754949308655,6.93999262,174.55,174.54,15.16621557]
[1754949308848,6.93999262,174.55,174.54,57.02621557]
[1754949309160,30.67000001,174.55,174.54,57.02621557]
[1754949311042,30.00000001,174.55,174.54,63.29620818]
[1754949311350,30.00000001,174.55,174.54,63.95620818]
[1754949311953,30.00000001,174.55,174.54,57.68621557]
[1754949312158,30.00000001,174.55,174.54,63.95620818]
[1754949312460,1e-08,174.55,174.54,63.95620818]
[1754949312960,1e-08,174.55,174.54,63.41556127]
[1754949314153,1e-08,174.55,174.54,69.68555388]
[1754949314962,1e-08,174.55,174.54,57.68621557]
[1754949315837,1e-08,174.55,174.54,63.95620818]
[1754949317435,1e-08,174.55,174.54,69.68555388]
[1754949317633,1e-08,174.55,174.54,69.02555388]
[1754949317837,1e-08,174.55,174.54,62.75556127]
[1754949318746,1e-08,174.55,174.54,63.46556127]
[1754949320483,1e-08,174.55,174.54,69.73555388]
[1754949326746,1e-08,174.55,174.54,63.46556127]
[1754949326949,1e-08,174.55,174.54,69.73555388]
[1754949327149,1e-08,174.55,174.54,20.89556127]
[1754949327354,1e-08,174.55,174.54,69.00555388]
[1754949328039,1e-08,174.55,174.54,69.71555388]
[1754949329448,0.87,174.58,174.57,15.10621557]
[1754949329649,0.87,174.58,174.57,146.84621556]
[1754949331567,0.2,174.58,174.57,146.84621556]
[1754949335566,0.2,174.58,174.57,152.57457667]
[1754949336853,0.2,174.58,174.57,146.84621556]
[1754949338262,0.03,174.59,174.58,89.69999999]
[1754949338456,0.03,174.59,174.57,63.38457668]
[1754949339093,0.03,174.59,174.57,69.65456929]
[1754949339462,0.03,174.59,174.57,68.94456929]
[1754949340181,0.03,174.59,174.58,41.81621557]
[1754949340684,0.03,174.59,174.58,41.10621557]
[1754949340860,0.03,174.59,174.58,46.83424856]
[1754949341056,0.03,174.59,174.58,53.81424117]
[1754949341265,0.03,174.59,174.58,27.81424117]
[1754949342796,0.03,174.59,174.58,32.41825658]
[1754949343390,0.03,174.6,174.59,15.10621557]
[1754949343711,0.03,174.61,174.59,70.74897128]
[1754949343997,0.03,174.61,174.6,22.08620818]
[1754949344364,0.03,174.61,174.6,34.08357765]
[1754949344565,0.03,174.64,174.62,15.10621557]
[1754949344789,0.03,174.64,174.62,57.49888765]
[1754949344984,0.03,174.64,174.62,64.47888026]
[1754949345578,0.03,174.64,174.62,70.20560113]
[1754949349197,1e-08,174.64,174.63,32.31621557]
[1754949349402,1e-08,174.64,174.63,39.27620818]
[1754949349784,1e-08,174.64,174.63,49.27620818]
[1754949350773,0.2,174.67,174.66,32.31621557]
[1754949350992,0.69,174.72,174.7,41.10621557]
[1754949351297,0.69,174.72,174.71,62.64998639]
[1754949353207,0.69,174.74,174.73,41.10621557]
[1754949353502,6.26999261,174.76,174.74,15.10621557]
[1754949353705,0.03,174.79,174.75,41.8]
[1754949353907,6.26999261,174.77,174.75,41.8]
[1754949354106,0.69,174.76,174.75,56.90621557]
[1754949354401,6.95999261,174.76,174.75,56.90621557]
[1754949354773,0.69,174.76,174.75,56.90621557]
[1754949355173,6.95999261,174.76,174.75,56.90621557]
[1754949355806,0.69,174.76,174.75,82.90621557]
[1754949356110,0.69,174.78,174.76,15.10621557]
[1754949356293,0.03,174.79,174.75,26.0]